Cogmind - Beta 16 @@@ ROGUE MODE // 2026.01.05 @ 19:18:45 Player: jam Result: Destroyed by S-10 Pest with Light Assault Rifle Performance ------------- Evolutions (2) 1000 Regions Visited (6) 1200 Robots Destroyed (37) 185 Value Destroyed (850) 850 Prototype IDs (3) 60 Alien Tech Used (0) 0 Bonus (25) 25 TOTAL SCORE: 3320 Bonus ------- Follower Combat Kills 25 Cogmind --------- Core Integrity 0/550 Matter 300/300 Energy 32/100 System Corruption 0% Temperature Cool (0) Movement Core (50) Location -8/Storage Parts ------- > --- POWER (2) -------- (None) > --- PROPULSION (2) --- (None) > --- UTILITY (5) ------ (None) > --- WEAPON (2) ------- (None) > --- INVENTORY (5) ---- Aluminum Leg Aluminum Leg Aluminum Leg Aluminum Leg Heat Sink Peak State ------------ > --- POWER ------------ Light Ion Engine Light Nuclear Core > --- PROPULSION ------- Aluminum Leg Carbon-fiber Leg > --- UTILITY ---------- Large Storage Unit Compact Matter Pod Improved Propulsion Shielding Light Armor Plating Field Recycling Unit > --- WEAPON ----------- Particle Gun EM Pulse Cannon > --- INVENTORY -------- Aluminum Leg Aluminum Leg Aluminum Leg Aluminum Leg Aluminum Leg Carbon-fiber Leg Heat Sink Large Storage Unit Light Armor Plating Small Laser [Rating: 24] Favorites ----------- Power Light Nuclear Core Engine Ion Engine Power Core Light Nuclear Core Propulsion Aluminum Leg Treads Light Treads Leg Aluminum Leg Utility Large Storage Unit Device Heat Sink Storage Large Storage Unit Protection Light Armor Plating Weapon Beam Rifle Energy Gun Beam Rifle Energy Cannon EM Pulse Cannon Ballistic Gun Light Assault Rifle Ballistic Cannon Improved Light Cannon Special Weapon Mining Laser Build | -11 -10 -10 -9 -9 -8 -8 ------- Run | Yrd Mat Min Mat Min Mat Sto Slots Evolved 4 | . . . 2 . 2 . Power 1 | . . . . . 1 . Propulsion . | . . . . . . . Utility 3 | . . . 2 . 1 . Weapon . | . . . . . . . Parts Attached 50 | 8 1 2 18 7 14 . Power 10 | 2 . 1 3 1 3 . Engine 7 | 2 . . 3 1 1 . Core 3 | . . 1 . . 2 . Reactor . | . . . . . . . Propulsion 13 | 2 . . 5 2 4 . Treads 2 | 2 . . . . . . Leg 11 | . . . 5 2 4 . Wheel . | . . . . . . . Hover . | . . . . . . . Flight . | . . . . . . . Utility 15 | 1 1 . 6 3 4 . Device 6 | . . . 3 1 2 . Storage 6 | 1 1 . 3 1 . . Processor . | . . . . . . . Hackware . | . . . . . . . Protection 3 | . . . . 1 2 . Artifact . | . . . . . . . Weapon 12 | 3 . 1 4 1 3 . Energy Gun 7 | 2 . 1 2 . 2 . Energy Cannon 1 | . . . . . 1 . Ballistic Gun 2 | 1 . . 1 . . . Ballistic Cannon 1 | . . . 1 . . . Launcher . | . . . . . . . Special Weapon 1 | . . . . 1 . . Impact Weapon . | . . . . . . . Slashing Weapon . | . . . . . . . Piercing Weapon . | . . . . . . . Special Melee Weapon . | . . . . . . . Unidentified Prototypes 1 | . . . 1 . . . Parts Lost 27 | . . 2 11 2 3 9 Power 9 | . . 1 3 . 3 2 Propulsion 4 | . . . 2 1 . 1 Utility 6 | . . . 2 . . 4 Weapon 8 | . . 1 4 1 . 2 Highest Loss Streak 8 | . . 2 6 2 2 8 To Critical Strikes . | . . . . . . . Average Backups 5 | 2 4 4 6 1 7 10 Power 1 | . 1 . 1 1 1 . Propulsion 2 | 1 2 2 2 . 3 6 Utility . | . . 1 . . 1 2 Weapon 1 | . 1 . 2 . . . Tool/Special . | . . . . . . . Unused Backups 2 | . . . . . . 2 Power . | . . . . . . . Propulsion 2 | . . . . . . 2 Utility . | . . . . . . . Weapon . | . . . . . . . Tool/Special . | . . . . . . . Average Slot Usage (%) 88 | . 85 84 93 77 95 79 Engine 7 | . 14 8 2 11 10 2 Core 5 | . . 5 8 . 6 6 Treads 10 | . 28 28 8 . . . Leg 11 | . . . 13 21 18 17 Device 9 | . . . 18 2 14 8 Storage 18 | . 14 14 21 22 18 17 Protection 2 | . . . . 1 10 14 Energy Gun 15 | . 14 20 16 11 15 6 Ballistic Gun 3 | . 14 7 1 . . . Special Weapon 1 | . . . . 8 . . Peak Build Rating 24 | 6 7 9 15 11 24 24 Average Rating 11 | 4 6 7 12 8 18 19 On Entrance 8 | . 6 6 9 5 11 24 Avg Prop Armor Cover (%) . | . . . . . . . Naked Turns 4 | . . . . . . 4 Heaviest Build 55 | 13 28 29 55 47 51 51 Greatest Support 40 | 40 40 40 40 20 25 25 Greatest Overweight (x) 4 | . . . 4 3 2 2 Average Overweight (x) . | . . . 1 1 1 1 Largest Inventory Capacity 15 | 8 15 15 15 15 15 15 Average Capacity 14 | 6 14 15 15 15 15 14 Most Carried 11 | 4 5 6 10 8 11 11 Average Carried 6 | 2 4 4 6 3 8 10 Final Capacity 15 | 8 15 15 15 15 15 5 Final Carried 11 | 4 5 6 4 8 11 5 Class Distribution -------------------- 92% | Mutant 7% | Scientist-Mutant Dominant Class ---------------- Mutant | -10/Materials Mutant | -10/Mines Mutant | -9/Materials Mutant | -9/Mines Mutant | -8/Materials Mutant | -8/Storage Resources | -11 -10 -10 -9 -9 -8 -8 ----------- Run | Yrd Mat Min Mat Min Mat Sto Matter Collected 967 | 230 70 54 286 146 181 . Remotely . | . . . . . . . Salvage Created 1241 | . 120 86 416 80 424 115 Parts 65 | . 10 4 29 2 14 6 Haulers Intercepted 1 | . 1 . . . . . Recyclers Shooed 3 | . 1 . 2 . . . Parts Field Recycled . | . . . . . . . Retrieved Matter . | . . . . . . . Parts Self-Destructed . | . . . . . . . Prevented . | . . . . . . . Parts Restored . | . . . . . . . Kills | -11 -10 -10 -9 -9 -8 -8 ------- Run | Yrd Mat Min Mat Min Mat Sto Combat Hostiles Destroyed 30 | . 3 2 15 2 5 3 Guns 24 | . 3 2 12 2 4 1 Cannons 6 | . . . 3 . 1 2 Classes Destroyed 8 | . 3 2 3 . . . Worker 1 | . 1 . . . . . Tunneler 1 | . . 1 . . . . Hauler 1 | . 1 . . . . . Recycler 3 | . . . 1 . 2 . Watcher 1 | . . . 1 . . . Swarmer 14 | . 3 . 10 . . 1 Grunt 12 | . . 2 3 2 3 2 Sentry 4 | . . . 2 . 2 . Best Kill Streak 5 | . 3 4 5 2 2 2 Combat Bots Only 5 | . 3 2 5 2 2 2 Max Kills in Single Turn 2 | . 1 1 1 1 2 1 Gunslinging . | . . . . . . . Exploded . | . . . . . . . Melee . | . . . . . . . Uniques/NPCs Destroyed . | . . . . . . . Combat | -11 -10 -10 -9 -9 -8 -8 -------- Run | Yrd Mat Min Mat Min Mat Sto Hostile Shots Fired 393 | . 25 33 150 6 71 108 Missed 104 | . 10 6 40 1 19 28 Hits 289 | . 15 27 110 5 52 80 Melee 8 | . . . 7 1 . . Projectile 281 | . 15 27 103 4 52 80 AOE 1 | . . . . . . 1 Critical Strikes 6 | . . . 3 . 1 2 Damage Taken 3556 | . 123 373 1308 80 753 919 Core 933 | . 23 71 281 . 267 291 Absorbed by Shields . | . . . . . . . Redirected to Shielding 105 | . . . . . . 105 Core Remaining (%) 63 | 100 . 62 . 29 . . Volleys Fired 131 | . 23 18 52 4 27 7 Largest 2 | . 2 2 2 1 2 2 Hottest 128 | . 70 90 121 56 128 128 Shots Fired 245 | . 46 32 97 4 53 13 Gun 211 | . 46 32 71 4 52 6 Cannon 34 | . . . 26 . 1 7 Launcher . | . . . . . . . Special . | . . . . . . . Kinetic 69 | . 23 11 35 . . . Thermal 168 | . 23 21 62 4 52 6 Explosive . | . . . . . . . Electromagnetic 8 | . . . . . 1 7 Robot Hit Streak 19 | . 4 4 8 3 19 3 Robot Miss Streak 5 | . 5 2 3 1 2 1 Penetration Max . | . . . . . . . Secondary Targets . | . . . . . . . Shots Hit Robots 158 | . 25 18 63 3 42 7 Core Hits 61 | . 9 6 24 3 14 5 Critical Kills . | . . . . . . . Critical Parts Destroyed . | . . . . . . . Critical Strikes 9 | . . 1 6 . 2 . Burn 7 | . . 1 4 . 2 . Blast 2 | . . . 2 . . . Melee Attacks . | . . . . . . . Impact . | . . . . . . . Slashing . | . . . . . . . Piercing . | . . . . . . . Sneak Attacks . | . . . . . . . Combat Hostiles . | . . . . . . . Follow-up Attacks . | . . . . . . . Damage Inflicted 2301 | . 245 192 1044 43 591 186 Guns 1829 | . 245 192 753 43 564 32 Cannons 458 | . . . 277 . 27 154 Explosions . | . . . . . . . Melee . | . . . . . . . Ramming 14 | . . . 14 . . . Kinetic 569 | . 108 52 409 . . . Thermal 1537 | . 137 140 621 43 564 32 Explosive . | . . . . . . . Electromagnetic 181 | . . . . . 27 154 Impact . | . . . . . . . Slashing . | . . . . . . . Piercing . | . . . . . . . Highest Corruption 1 | . . . . 1 . . Average Corruption 1 | . . . . 1 . . Corruption Purged . | . . . . . . . Corruption Blocked . | . . . . . . . Overload Shots . | . . . . . . . Overflow Damage 9 | . . . 9 . . . Projectiles 9 | . . . 9 . . . Explosions . | . . . . . . . Melee . | . . . . . . . Knockbacks 4 | . . . 4 . . . Impact . | . . . . . . . Kinetic 4 | . . . 4 . . . Secondary . | . . . . . . . Self-Inflicted Damage . | . . . . . . . Shots . | . . . . . . . Rammed . | . . . . . . . Targets Rammed 2 | . . . 2 . . . Kicked 2 | . . . 2 . . . Crushed . | . . . . . . . Highest Temperature 538 | . 90 393 194 1 538 365 Average Temperature 110 | . 34 182 45 1 163 145 Received Heat Transfer 1077 | . . 216 261 24 387 189 Effects 13 | . . . . . 13 . Shutdowns 3 | . . . . . 3 . Energy Bleed 2 | . . . . . 2 . Interference 3 | . . . . . 3 . Short Circuit 1 | . . . . . 1 . Damage (major) 3 | . . . . . 3 . Damage (core) 1 | . . . . . 1 . Siege Activations . | . . . . . . . Martial Activations . | . . . . . . . Shielding Activations . | . . . . . . . Robots Disrupted . | . . . . . . . Combat Hostiles . | . . . . . . . Robots Corrupted . | . . . . . . . Combat Hostiles . | . . . . . . . Parts Fried . | . . . . . . . Impact Corruptions . | . . . . . . . Robots Melted . | . . . . . . . Combat Hostiles . | . . . . . . . Parts Melted 9 | . 1 2 1 . 5 . Heat Transferred 4411 | . 407 469 1887 111 1463 74 Parts Sabotaged . | . . . . . . . Parts Stolen . | . . . . . . . Parts Stripped . | . . . . . . . Power Chain Reactions . | . . . . . . . Alert | -11 -10 -10 -9 -9 -8 -8 ------- Run | Yrd Mat Min Mat Min Mat Sto Maximum Alert Level . | . . . . . . . Low Security (%) 100 | 100 100 100 100 100 100 100 Level 1 . | . . . . . . . Level 2 . | . . . . . . . Level 3 . | . . . . . . . Level 4 . | . . . . . . . Level 5 . | . . . . . . . High Security . | . . . . . . . Max Security . | . . . . . . . Peak Influence 185 | . 50 30 185 55 96 57 Initial 36 | . . 19 . 36 19 26 Average 26 | . 4 4 52 11 32 20 Influence Increases 970 | . 82 55 445 100 217 71 Destroy 0b10 Robot/C 620 | . 60 40 320 40 100 60 Destroy 0b10 Robot/NC 35 | . 10 5 10 . 10 . Destroy Leader 144 | . 12 10 82 . 30 10 Allied During Kill 4 | . . . 4 . . . Trap Triggered on 0b10 50 | . . . . 30 20 . Successful Hack 19 | . . . 8 . 11 . Destroy Structure 8 | . . . 6 . 1 1 Lose Combat Pursuer 90 | . . . 15 30 45 . Influence Decreases 970 | . 32 105 352 143 203 135 Entered New Map 157 | . . 31 . 57 31 38 Time Decay 586 | . 32 64 242 66 142 40 Lost Part 227 | . . 10 110 20 30 57 Squads Dispatched 8 | . 2 . 3 . 1 2 Investigation 3 | . 1 . 2 . . . Extermination . | . . . . . . . Reinforcement 5 | . 1 . 1 . 1 2 Assault . | . . . . . . . Garrison . | . . . . . . . Intercept . | . . . . . . . Searches Triggered . | . . . . . . . Construction Impeded . | . . . . . . . Haulers Reinforced . | . . . . . . . Active Scanning Responses . | . . . . . . . Cargo Convoy Interrupts . | . . . . . . . Stealth | -11 -10 -10 -9 -9 -8 -8 --------- Run | Yrd Mat Min Mat Min Mat Sto Distress Signals 5 | . . . 2 . 1 2 Communications Jammed . | . . . . . . . Distress Signals . | . . . . . . . Times Spotted 61 | . 5 2 29 3 11 11 Peak Tracking Total 8 | . 4 2 8 3 5 8 Tactical Retreats 8 | . . . 4 2 2 . ECM-based Alert Blocks 4 | . . . 4 . . . Traps | -11 -10 -10 -9 -9 -8 -8 ------- Run | Yrd Mat Min Mat Min Mat Sto Traps Triggered 3 | . 1 . 2 . . . Indirectly . | . . . . . . . Trap Hack Attempts . | . . . . . . . Triggered . | . . . . . . . Disarmed . | . . . . . . . Reprogrammed . | . . . . . . . Reused 5 | . . . . 3 2 . Traps Extracted . | . . . . . . . Installed 5 | . . . . 3 2 . Triggered 5 | . . . . 3 2 . Most Traps Carried 5 | . . . . 5 2 . Machines | -11 -10 -10 -9 -9 -8 -8 ---------- Run | Yrd Mat Min Mat Min Mat Sto Machines Disabled . | . . . . . . . Max in Single Turn . | . . . . . . . Machines Repaired . | . . . . . . . Machines Dismantled . | . . . . . . . Machines Sabotaged . | . . . . . . . Overloaded Fab Kills . | . . . . . . . Hacking | -11 -10 -10 -9 -9 -8 -8 --------- Run | Yrd Mat Min Mat Min Mat Sto Machines Accessed 7 | . 1 . 4 . 2 . Terminals 4 | . 1 . 2 . 1 . Fabricators . | . . . . . . . Repair Stations . | . . . . . . . Recycling Units . | . . . . . . . Scanalyzers 3 | . . . 2 . 1 . Garrison Access . | . . . . . . . Total Hacks 20 | . 2 . 9 . 9 . Successful 11 | . . . 4 . 7 . Failed 8 | . 2 . 4 . 2 . Catastrophic 2 | . . . 1 . 1 . Database Lockouts 1 | . . . 1 . . . Manual 8 | . 2 . 3 . 3 . Terminals 9 | . 2 . 3 . 4 . Fabricators . | . . . . . . . Repair Stations . | . . . . . . . Recycling Units . | . . . . . . . Scanalyzers 11 | . . . 6 . 5 . Garrison Access . | . . . . . . . Terminal Hacks 3 | . . . 1 . 2 . Prototype ID Bank 1 | . . . . . 1 . Terminal Index 2 | . . . 1 . 1 . Fabricator Hacks . | . . . . . . . Repair Station Hacks . | . . . . . . . Recycling Unit Hacks . | . . . . . . . Scanalyzer 8 | . . . 3 . 5 . Insert Component 1 | . . . . . 1 . Analyze 1 | . . . . . 1 . Retrieve Study 6 | . . . 3 . 3 . Garrison Access Hacks . | . . . . . . . Unauthorized Hacks . | . . . . . . . Terminals . | . . . . . . . Fabricators . | . . . . . . . Repair Stations . | . . . . . . . Recycling Units . | . . . . . . . Scanalyzers . | . . . . . . . Garrison Access . | . . . . . . . Data Cores Recovered . | . . . . . . . Used . | . . . . . . . Hacking Detections 7 | . 1 . 4 . 2 . Full Trace Events . | . . . . . . . Feedback Events . | . . . . . . . Feedback Blocked . | . . . . . . . Robot Schematics Acquired . | . . . . . . . Robots Built . | . . . . . . . Authchips . | . . . . . . . Time . | . . . . . . . Total Robot Build Rating . | . . . . . . . Part Schematics Acquired 1 | . . . . . 1 . Parts Built . | . . . . . . . Authchips . | . . . . . . . Time . | . . . . . . . Total Part Build Rating . | . . . . . . . Part Studies Acquired 6 | . . . 3 . 3 . Parts Repaired . | . . . . . . . Time . | . . . . . . . Parts Recycled . | . . . . . . . Recycled Matter . | . . . . . . . Retrieved Matter . | . . . . . . . Retrieved Components . | . . . . . . . Parts Scanalyzed 1 | . . . . . 1 . Part Schematics Acquired 1 | . . . . . 1 . Parts Damaged . | . . . . . . . Bothacking | -11 -10 -10 -9 -9 -8 -8 ------------ Run | Yrd Mat Min Mat Min Mat Sto Used RIF Installer . | . . . . . . . Robots Hacked . | . . . . . . . Non-combat . | . . . . . . . Combat . | . . . . . . . Robot Hacks Applied . | . . . . . . . Relay Couplers Released . | . . . . . . . Fabnet Peak Effective % . | . . . . . . . Robots Rewired . | . . . . . . . Allies Hacked . | . . . . . . . Hacks Repelled . | . . . . . . . Allies | -11 -10 -10 -9 -9 -8 -8 -------- Run | Yrd Mat Min Mat Min Mat Sto Total Allies 1 | . . 1 . . . . Largest Group 1 | . . 1 1 . . . Highest-Rated Group 31 | . . 31 31 . . . Highest-Rated Ally 31 | . . 31 31 . . . Total Orders . | . . . . . . . Ally Attacks 3 | . . . 3 . . . Total Damage 20 | . . . 20 . . . Kills 1 | . . . 1 . . . Allies Corrupted . | . . . . . . . Allies Melted . | . . . . . . . Intel | -11 -10 -10 -9 -9 -8 -8 ------- Run | Yrd Mat Min Mat Min Mat Sto Active Infowar (turns) 385 | . . . 385 . . . ECM 385 | . . . 385 . . . Robot Analysis Total . | . . . . . . . Derelict Logs Recovered 1 | . . 1 . . . . Drone Launches . | . . . . . . . Drone Recoveries . | . . . . . . . Exploration | -11 -10 -10 -9 -9 -8 -8 ------------- Run | Yrd Mat Min Mat Min Mat Sto Turns Passed 2455 | 79 252 424 762 357 461 120 Spaces Moved 1035 | 43 116 232 271 145 184 44 Core 11 | 3 . . . . . 8 Treads 486 | 40 116 232 98 . . . Legs 538 | . . . 173 145 184 36 Wheels . | . . . . . . . Hover . | . . . . . . . Flight . | . . . . . . . Fastest Speed 50 | 50 160 160 160 175 175 50 Average Speed 186 | 152 160 160 202 224 192 177 Slowest Speed 385 | 160 160 160 385 315 252 252 Overloaded Moves . | . . . . . . . Propulsion Burnouts . | . . . . . . . Robots Hopped . | . . . . . . . Potential Cave-ins . | . . . . . . . Cave-ins Triggered . | . . . . . . . Exploration Rate (%) 23 | 4 28 61 25 22 14 12 Regions Visited 6 Branch Regions 3 Pre-discovered Areas 1 | . . 1 . . . . Known Exits Taken . | . . . . . . . Unknown Exits Taken 6 | 1 1 1 1 1 1 . Scrap Searched . | . . . . . . . Spaces Dug . | . . . . . . . Terrain Destroyed 2 | . . . 2 . . . Melee . | . . . . . . . Projectile 2 | . . . 2 . . . AOE . | . . . . . . . Terrain Rammed . | . . . . . . . Walls Destroyed . | . . . . . . . Machines Disabled . | . . . . . . . Actions | -11 -10 -10 -9 -9 -8 -8 --------- Run | Yrd Mat Min Mat Min Mat Sto Total 1317 | 53 141 254 389 172 235 73 Wait 42 | . . . 19 . 1 22 Move 1029 | 42 115 231 270 144 183 44 Hop . | . . . . . . . Pick Up 23 | 3 1 1 9 8 1 . Fast Attach 22 | 6 1 . 6 4 5 . Attach 26 | . . 2 17 3 4 . Detach 7 | . . . 5 1 1 . Swap 15 | 2 . 2 2 2 7 . Drop 15 | . 1 . 7 3 4 . Fire 131 | . 23 18 52 4 27 7 Melee . | . . . . . . . Ram . | . . . . . . . Kick 2 | . . . 2 . . . Crush . | . . . . . . . Escape Stasis . | . . . . . . . Rewire . | . . . . . . . Trap 5 | . . . . 3 2 . Miscellaneous . | . . . . . . . Route ------- -11/Scrapyard -10/Materials -10/Mines -9/Materials -9/Mines -8/Materials -8/Storage History --------- Turn | Location | Event 31 | -11/Scrapyard | Discovered new exit (range 15) 80 | -11/Scrapyard | Entered Materials 266 | -10/Materials | Discovered new exit (range 9) 301 | -10/Materials | Build established: Mutant 332 | -10/Materials | Entered Mines 333 | -10/Mines | Assembled infested the area 723 | -10/Mines | Discovered new exit (range 15) 732 | -10/Mines | Learned location of Zion (-6) 735 | -10/Mines | Received a Mining Laser from a helpful Derelict 756 | -10/Mines | Entered Materials 756 | -9/Materials | Accompanied by 1 ally 756 | -9/Materials | Evolved 2 slots: Utility x2 984 | -9/Materials | Central database locked down 1466 | -9/Materials | Lost 3 parts (1n2w) 1487 | -9/Materials | Discovered new exit (range 5) 1506 | -9/Materials | Core integrity fell below 50% 1518 | -9/Materials | Entered Mines 1545 | -9/Mines | Lost 6 parts (2p1n1u2w) 1668 | -9/Mines | Discovered new exit (range 9) 1691 | -9/Mines | Found a hidden stash of uninstalled traps 1875 | -9/Mines | Entered Materials 1875 | -8/Materials | Evolved 2 slots: Power x1, Utility x1 2201 | -8/Materials | Discovered new exit (range 16) 2336 | -8/Materials | Entered Storage 2413 | -8/Storage | Core integrity fell below 50% 2452 | -8/Storage | Released all parts (2) 2453 | -8/Storage | Core integrity fell below 20% 2456 | -8/Storage | Destroyed by S-10 Pest with Light Assault Rifle Last Messages --------------- 02417_ Particle Gun destroyed. 02417_ R-06 Scavenger collects Corrupted Flight Unit. 02418_ K-01 Serf collects debris. 02424_ R-06 Scavenger collects Flight Unit. 02424_ EM Pulse Cannon destroyed. 02424_ Lgt. Armor Plating destroyed. 02425_ K-01 Serf collects debris. 02432_ Imp. Propulsion Shielding destroyed. 02435_ Critical hit (Burn: +37). 02437_ ALERT: Hostiles spotted, dispatching reinforcements to Terminal S011. 02441_ Com. Matter Pod destroyed. 02449_ Aluminum Leg+ destroyed. 02449_ Field Recycling Unit destroyed. 02452_ Released Carbon-fiber Leg. 02452_ Released Lrg. Storage Unit. 02453_ Compression Vault explodes. 02453_ Transfer Shaft disabled. 02453_ Terminal disabled. 02453_ W-25 Informer sends out distress signal. Map ----- +----------------------------------------------------+ | | | ?????????????????????????????????????????????????? | | ???????????????????????###?????############??????? | | ??????????????????????# ?????# #??????? | | ??????????????????????# ?????# #??????? | | ??????????????????????# "?????# #??????? | | ??????????????????????# "?????# ########??????? | | ??????????????????????# "?????# #?????????????? | | ??????????????????????# "?????# #?????????????? | | ??????????????????????# "???? # #?????????????? | | ??????????????????????# """" # #?????????????? | | ??????????????????????#% # #?????????????? | | ???????? ###########+##+##### #?????????????? | | ??????? #?????????????? | | ??????? % #?????????????? | | ??????? % #?????????????? | | ???????? ###########Y##Y#########?????????????? | | ?????????????????????# s= u #????""???????????? | | ?????????????????????# =!s ####"T"###????????? | | ?????????????????????#!w== #????????? | | ?????????????????????# " o"""??????????? | | ?????????????????????# "" """??????????? | | ?????????????????????# " """ ?????????? | | ?????????????????????# #????????? | | ?????????????????????# # """ #????????? | | ?????????????????????####@ ##? ""???????????? | | ????????????????????????# #####??? ""???????????? | | ????????????????????????# #???????? ???????????? | | ????????????????????????# #?????????+##??????????? | | ????????????????????????+ ??????????????????????? | | ????????????????????????# ??????????????????????? | | ????????????????????????###??????????????????????? | | ?????????????????????????????????????????????????? | | ?????????????????????????????????????????????????? | | ?????????????????????????????????????????????????? | | ?????????????????????????????????????????????????? | | ?????????????????????????????????????????????????? | | ?????????????????????????????????????????????????? | | ?????????????????????????????????????????????????? | | ?????????????????????????????????????????????????? | | ?????????????????????????????????????????????????? | | ?????????????????????????????????????????????????? | | ?????????????????????????????????????????????????? | | ?????????????????????????????????????????????????? | | ?????????????????????????????????????????????????? | | ?????????????????????????????????????????????????? | | ?????????????????????????????????????????????????? | | ?????????????????????????????????????????????????? | | ?????????????????????????????????????????????????? | | ?????????????????????????????????????????????????? | +----------------------------------------------------+ Best States ------------- Heat Dissipation 45 Coolant Potential 50 Energy Generation 22 Energy Capacity 310 Matter Stores 450 Matter Capacity 450 Sight Range 16 Terrain Scan Density 10 ECM Strength 1 Armor Coverage 150 Propulsion Shielding 66 Evasion (%) 40 Recoil Reduction 2 Item Schematics ----------------- Lrg. Storage Unit | -8/Materials | Scanalyzed Robot Schematics ------------------ None Fabricated ------------ Nothing Repaired ---------- Nothing Studied --------- Beam Rifle | -9/Materials | Hacked Aluminum Leg | -9/Materials | Hacked Lgt. Treads | -9/Materials | Hacked Lgt. Nuclear Core | -8/Materials | Hacked Ion Engine | -8/Materials | Hacked Sml. Laser | -8/Materials | Hacked Alien Tech Used ----------------- None Achievements -------------- None Challenges ------------ None Game ------ Seed DispersalLaunchWand Manual? 0 Play Time 00:23:27 Cumulative 14.1 hours Start 2026.01.05 @ 17:43:31 End 2026.01.05 @ 19:18:45 Sessions 3 Manual Loads 0 Difficulty Rogue Special Mode None Game No. 28 Rogue 25 Adventurer 3 Explorer 0 Win Type - Total 0 Types 0/0/0/0/0/0/0/0/0/0 Lore% 9 Gallery% 20 Achievement% 14 Wizard Run 0 Options --------- Layout 0 ASCII 0 Keyboard 0 Movement Mouse Keybinds 0 Fullscreen 1 Font 18/SmallcapsGlow Map View 65x51 Zoom Use 0% Tactical HUD 1 Map Filters NONE Filters NONE Steam 1 RUN: f3789237-632e-489c-978a-3b2d5361c5c2